[Event "POL-ch Women MOKATE 2020"]
[Site "Ostrow Wielkopolski"]
[Date "2020.08.09"]
[Round "6.1"]
[White "Kucharska, Honorata"]
[Black "Majdan, Joanna"]
[Result "1-0"]
[ECO "B89"]
[WhiteElo "2113"]
[BlackElo "2325"]
[Annotator "ChessBase"]
[PlyCount "43"]
[EventDate "2020.08.04"]
[EventType "tourn"]
[EventCountry "POL"]
[SourceTitle "playchess.com"]
[Source "ChessBase"]
[SourceQuality "1"]
[TimeControl "40/5400+30:1800+30"]

1. e4 {[%emt 0:00:00]} c5 {[%emt 0:00:00]} 2. Nf3 {[%emt 0:00:00]} Nc6 {[%emt 0:00:01]} 3. d4 {[%emt 0:00:00]} cxd4 {[%emt 0:00:08]} 4. Nxd4 {[%emt 0:00:00]} Nf6 {[%emt 0:00:11]} 5. Nc3 {[%emt 0:00:00]} d6 {[%emt 0:00:06]} 6. Bc4 {[%emt 0:00:58]} e6 {[%emt 0:01:12]} 7. Be3 {[%emt 0:00:29]} a6 {[%emt 0:01:42]} 8. Qe2 {[%emt 0:01:50]} Na5 {[%emt 0:02:48]} 9. Bd3 {[%emt 0:08:50]} b5 {[%emt 0:11:21]} 10. O-O {[%emt 0:08:05]} Qc7 {[%emt 0:03:58]} 11. Ncxb5 {[%emt 0:09:03]} axb5 {[%emt 0:00:19]} 12. b4 {[%emt 0:00:05]} Nb7 {[%emt 0:03:01]} 13. Nxb5 {[%emt 0:00:26]} Qd8 {[%emt 0:00:04]} 14. a4 {[%emt 0:02:04]} d5 {[%emt 0:13:51]} 15. a5 {[%emt 0:02:55]} Nd7 {[%emt 0:06:14]} 16. exd5 {[%emt 0:04:41]} Bxb4 {[%emt 0:01:31]} 17. dxe6 {[%emt 0:02:21]} fxe6 {[%emt 0:05:37]} 18. Qh5+ {[%emt 0:05:15]} g6 {[%emt 0:10:07]} 19. Bxg6+ {[%emt 0:00:55]} hxg6 {[%emt 0:00:03]} 20. Qxh8+ {[%emt 0:00:27]} Bf8 {[%emt 0:01:33]} 21. a6 {[%emt 0:00:32]} Kf7 {[%emt 0:09:09]} 22. axb7 {[%emt 0:02:33]} 1-0

[Event "POL-ch Women MOKATE 2020"]
[Site "Ostrow Wielkopolski"]
[Date "2020.08.09"]
[Round "6.3"]
[White "Kulon, Klaudia"]
[Black "Kubicka, Anna"]
[Result "1-0"]
[ECO "B13"]
[WhiteElo "2336"]
[BlackElo "2256"]
[Annotator "ChessBase"]
[PlyCount "117"]
[EventDate "2020.08.04"]
[EventType "tourn"]
[EventCountry "POL"]
[SourceTitle "playchess.com"]
[Source "ChessBase"]
[SourceQuality "1"]
[TimeControl "40/5400+30:1800+30"]

1. e4 {[%emt 0:00:00]} c6 {[%emt 0:00:00]} 2. d4 {[%emt 0:00:00]} d5 {[%emt 0:00:00]} 3. exd5 {[%emt 0:00:00]} cxd5 {[%emt 0:00:00]} 4. Bd3 {[%emt 0:00:00]} Nf6 {[%emt 0:00:00]} 5. c3 {[%emt 0:00:12]} Bg4 {[%emt 0:00:08]} 6. Qb3 {[%emt 0:01:41]} Qc7 {[%emt 0:00:05]} 7. Bg5 {[%emt 0:06:11]} e6 {[%emt 0:06:16]} 8. Nd2 {[%emt 0:01:01]} Be7 {[%emt 0:00:57]} 9. Ngf3 {[%emt 0:01:14]} Nc6 {[%emt 0:00:34]} 10. O-O {[%emt 0:00:44]} O-O {[%emt 0:00:42]} 11. Qc2 {[%emt 0:02:00]} h6 {[%emt 0:01:32]} 12. Bh4 {[%emt 0:00:05]} Rfc8 {[%emt 0:05:24]} 13. a3 {[%emt 0:02:31]} Nh5 {[%emt 0:04:14]} 14. Bg3 {[%emt 0:12:34]} Nxg3 {[%emt 0:00:54]} 15. fxg3 {[%emt 0:00:27]} Bf6 {[%emt 0:01:31]} 16. Qa4 {[%emt 0:08:01]} a6 {[%emt 0:06:07]} 17. Rae1 {[%emt 0:03:45]} b5 {[%emt 0:01:18]} 18. Qb3 {[%emt 0:00:24]} Na5 {[%emt 0:03:14]} 19. Qc2 {[%emt 0:03:40]} Nc4 {[%emt 0:01:30]} 20. Kh1 {[%emt 0:03:03]} Rab8 {[%emt 0:05:07]} 21. Nb3 {[%emt 0:05:43]} a5 {[%emt 0:07:49]} 22. Nc5 {[%emt 0:10:38]} Qd6 {[%emt 0:01:18]} 23. Qc1 {[%emt 0:06:07]} Bxf3 {[%emt 0:12:29]} 24. Rxf3 {[%emt 0:01:41]} e5 {[%emt 0:01:22]} 25. Bf5 {[%emt 0:10:16]} Rd8 {[%emt 0:02:52]} 26. b3 {[%emt 0:00:27]} exd4 {[%emt 0:03:08]} 27. Ne6 {[%emt 0:00:22]} Ne5 {[%emt 0:07:56]} 28. Nxd8 {[%emt 0:00:20]} Rxd8 {[%emt 0:00:52]} 29. Rff1 {[%emt 0:02:19]} Nc6 {[%emt 0:02:54]} 30. cxd4 {[%emt 0:01:48]} Nxd4 {[%emt 0:00:13]} 31. Bb1 {[%emt 0:00:52]} a4 {[%emt 0:05:43]} 32. b4 {[%emt 0:01:56]} Nb3 {[%emt 0:07:02]} 33. Qe3 {[%emt 0:00:16]} g6 {[%emt 0:09:34]} 34. Qxh6 {[%emt 0:00:52]} Bg7 {[%emt 0:00:06]} 35. Qg5 {[%emt 0:00:32]} Nd4 {[%emt 0:01:07]} 36. Qe7 {[%emt 0:02:35]} Qxe7 {[%emt 0:00:57]} 37. Rxe7 {[%emt 0:00:01]} f5 {[%emt 0:01:19]} 38. g4 {[%emt 0:00:09]} Nb3 {[%emt 0:01:01]} 39. Rd1 {[%emt 0:00:57]} fxg4 {[%emt 0:01:42]} 40. Bxg6 {[%emt 0:00:00]} Bb2 {[%emt 0:00:00]} 41. Re8+ {[%emt 0:03:39]} Rxe8 {[%emt 0:00:31]} 42. Bxe8 {[%emt 0:00:03]} Nd4 {[%emt 0:02:19]} 43. Rd2 {[%emt 0:02:19]} Bc3 {[%emt 0:00:11]} 44. Rd3 {[%emt 0:00:08]} Bb2 {[%emt 0:00:05]} 45. Bh5 {[%emt 0:00:39]} Nc6 {[%emt 0:02:38]} 46. Rxd5 {[%emt 0:03:03]} Bxa3 {[%emt 0:01:32]} 47. Rxb5 {[%emt 0:00:18]} g3 {[%emt 0:01:06]} 48. Rg5+ {[%emt 0:00:40]} Kf8 {[%emt 0:00:04]} 49. b5 {[%emt 0:00:04]} Nd4 {[%emt 0:00:54]} 50. b6 {[%emt 0:00:41]} gxh2 {[%emt 0:00:30]} 51. b7 {[%emt 0:00:38]} Nc6 {[%emt 0:00:03]} 52. Re5 {[%emt 0:02:34]} Be7 {[%emt 0:03:52]} 53. Rf5+ {[%emt 0:00:34]} Kg8 {[%emt 0:00:32]} 54. Be8 {[%emt 0:00:42]} Nb8 {[%emt 0:00:13]} 55. Bxa4 {[%emt 0:00:02]} Bd6 {[%emt 0:00:04]} 56. g3 {[%emt 0:00:04]} Kg7 {[%emt 0:01:59]} 57. Kxh2 {[%emt 0:00:12]} Kg6 {[%emt 0:00:03]} 58. Rd5 {[%emt 0:00:13]} Bc7 {[%emt 0:00:07]} 59. Kh3 {[%emt 0:00:08]} 1-0

[Event "POL-ch Women MOKATE 2020"]
[Site "Ostrow Wielkopolski"]
[Date "2020.08.09"]
[Round "6.5"]
[White "Sliwicka, Alicja"]
[Black "Zawadzka, Jolanta"]
[Result "0-1"]
[ECO "B90"]
[WhiteElo "2317"]
[BlackElo "2419"]
[Annotator "RC"]
[PlyCount "160"]
[EventDate "2020.08.04"]
[EventType "tourn"]
[EventCountry "POL"]
[SourceTitle "playchess.com"]
[Source "ChessBase"]
[SourceQuality "1"]
[TimeControl "40/5400+30:1800+30"]

1. e4 {[%emt 0:00:00]} c5 {[%emt 0:00:00]} 2. Nf3 {[%emt 0:00:00]} d6 {[%emt 0:00:00]} 3. d4 {[%emt 0:00:00]} cxd4 {[%emt 0:00:00]} 4. Nxd4 {[%emt 0:01:20]} Nf6 {[%emt 0:00:00]} 5. Nc3 {[%emt 0:00:09]} a6 {[%emt 0:00:00]} 6. Bd3 {[%emt 0:00:34]} Nc6 {[%emt 0:03:51]} 7. Nxc6 {[%emt 0:00:51]} bxc6 {[%emt 0:00:06]} 8. O-O {[%emt 0:00:31]} e5 {[%emt 0:00:33]} 9. Kh1 {[%emt 0:02:17]} Be7 {[%emt 0:02:30]} 10. f4 {[%emt 0:01:25]} O-O {[%emt 0:16:44]} 11. Qf3 {[%emt 0:12:06]} exf4 {[%emt 0:08:57]} 12. Bxf4 {[%emt 0:01:53]} Bg4 {[%emt 0:04:27]} 13. Qf2 {[%emt 0:10:41]} Be6 {[%emt 0:06:21]} 14. Rad1 {[%emt 0:08:52]} Ng4 {[%emt 0:00:47]} 15. Qf3 {[%emt 0:09:34]} Bf6 {[%emt 0:07:40]} 16. Na4 {[%emt 0:06:15]} Be5 {[%emt 0:09:40]} 17. Bxe5 {[%emt 0:01:17]} Nxe5 {[%emt 0:00:07]} 18. Qf4 {[%emt 0:01:58]} Nxd3 {[%emt 0:03:34]} 19. cxd3 {[%emt 0:07:27]} Bxa2 {[%emt 0:00:19]} 20. Nc3 {[%emt 0:00:07]} Bb3 {[%emt 0:01:34]} 21. Rd2 {[%emt 0:00:52]} f6 {[%emt 0:02:36]} 22. Ne2 {[%emt 0:00:36]} Qd7 {[%emt 0:03:38]} 23. Nd4 {[%emt 0:08:06]} Be6 {[%emt 0:00:10]} 24. Rc2 {[%emt 0:00:48]} c5 {[%emt 0:01:06]} 25. Ne2 {[%emt 0:01:35]} Rab8 {[%emt 0:05:33]} 26. d4 {[%emt 0:03:01]} Qe7 {[%emt 0:02:34]} 27. Ra1 {[%emt 0:05:18]} Rb6 {[%emt 0:00:49]} 28. Ra5 {[%emt 0:02:54]} Bb3 {[%emt 0:05:41]} 29. Rc1 {[%emt 0:01:59]} Rb4 {[%emt 0:05:33]} 30. Qd2 {[%emt 0:03:35]} Bc4 {[%emt 0:04:33]} 31. Ng3 {[%emt 0:00:34]} Bb5 {[%emt 0:00:32]} 32. dxc5 {[%emt 0:02:05]} dxc5 {[%emt 0:00:16]} 33. Qd5+ {[%emt 0:01:33]} Kh8 {[%emt 0:01:31]} 34. Nf5 {[%emt 0:02:18]} Qxe4 {[%emt 0:01:04]} 35. Qxc5 {[%emt 0:02:19]} Re8 {[%emt 0:00:57]} 36. Nd6 {[%emt 0:00:46]} Qe1+ {[%emt 0:00:28]} 37. Qg1 {[%emt 0:00:05]} Qxg1+ {[%emt 0:00:06]} 38. Kxg1 {[%emt 0:00:05]} Rb8 {[%emt 0:00:35]} 39. Nxb5 {[%emt 0:00:29]} axb5 {[%emt 0:00:06]} 40. Rc2 {[%emt 0:00:00]} h6 {[%emt 0:00:00]} 41. Ra7 {[%emt 0:03:17]} Rd8 {[%emt 0:03:04]} 42. h3 {[%emt 0:02:16]} Rd5 {[%emt 0:01:37]} 43. Rb7 {[%emt 0:01:30]} Kh7 {[%emt 0:01:10]} 44. Kh2 {[%emt 0:01:09]} h5 {[%emt 0:01:14]} 45. Re7 {[%emt 0:04:04]} Kh6 {[%emt 0:00:52]} 46. Rb7 {[%emt 0:03:38]} g6 {[%emt 0:03:31]} 47. Re7 {[%emt 0:00:46]} h4 {[%emt 0:02:00]} 48. Re1 {[%emt 0:01:52]} Rd3 {[%emt 0:02:49]} 49. Rf2 {[%emt 0:00:58]} f5 {[%emt 0:02:07]} 50. Re6 {[%emt 0:01:22]} Kh5 {[%emt 0:00:27]} 51. Re1 {[%emt 0:01:02]} Rc4 {[%emt 0:03:33]} 52. Ref1 {[%emt 0:04:39]} Kg5 {[%emt 0:04:34]} 53. Kg1 {[%emt 0:03:22]} b4 {[%emt 0:00:41]} 54. Kh2 {[%emt 0:01:56]} Rcd4 {[%emt 0:01:14]} 55. Rf3 {[%emt 0:02:15]} Rd2 {[%emt 0:01:05]} 56. R1f2 {[%emt 0:02:08]} Rxf2 {[%emt 0:05:07]} 57. Rxf2 {[%emt 0:00:07]} Rd3 {[%emt 0:00:16]} 58. Re2 {[%emt 0:00:58]} Rb3 {[%emt 0:01:26]} 59. Rd2 {[%emt 0:02:36]} Re3 {[%emt 0:01:01]} 60. Rd4 {[%emt 0:00:38]} Re4 {[%emt 0:00:14]} 61. Rd3 {[%emt 0:00:30]} Kf4 {[%emt 0:00:13]} 62. Rd6 {[%emt 0:01:31]} g5 {[%emt 0:00:22]} 63. Rd5 {[%emt 0:00:21]} Rc4 {[%emt 0:02:01]} 64. Rb5 {[%emt 0:00:22]} Ke4 {[%emt 0:02:09]} 65. Kg1 {[%emt 0:01:14]} g4 {[%emt 0:00:28]} 66. hxg4 {[%emt 0:00:23]} fxg4 {[%emt 0:00:02]} 67. b3 {[%emt 0:00:56]} Rd4 {[%emt 0:00:17]} 68. Kf2 {[%emt 0:00:52]} Kd3 {[%emt 0:00:16]} 69. Rc5 {[%emt 0:00:18]} Rf4+ {[%emt 0:00:49]} 70. Ke1 {[%emt 0:00:13]} g3 {[%emt 0:00:19]} 71. Rc8 {[%emt 0:01:05]} Re4+ {[%emt 0:00:59]} 72. Kd1 {[%emt 0:00:29]} Ke3 {[%emt 0:00:19]} 73. Ke1 {[%emt 0:00:18]} h3 {[%emt 0:00:38]} 74. Rg8 {[%emt 0:00:44]} Kf4+ {[%emt 0:00:14]} 75. Kf1 {[%emt 0:00:08]} hxg2+ {[%emt 0:01:34]} 76. Kxg2 {[%emt 0:00:07]} Re2+ {[%emt 0:00:02]} 77. Kg1 {[%emt 0:00:40]} Re3 {[%emt 0:00:28]} 78. Rf8+ {[%emt 0:00:57]} Ke4 {[%emt 0:00:12]} 79. Re8+ {[%emt 0:00:36]} Kd4 {[%emt 0:00:14]} 80. Rb8 {[%emt 0:00:32]} Kc3 {[%emt 0:00:11]} 0-1

[Event "POL-ch Women MOKATE 2020"]
[Site "Ostrow Wielkopolski"]
[Date "2020.08.10"]
[Round "7.1"]
[White "Zawadzka, Jolanta"]
[Black "Kucharska, Honorata"]
[Result "1-0"]
[ECO "B56"]
[WhiteElo "2419"]
[BlackElo "2113"]
[Annotator "ChessBase"]
[PlyCount "87"]
[EventDate "2020.08.04"]
[EventType "tourn"]
[EventCountry "POL"]
[SourceTitle "playchess.com"]
[Source "ChessBase"]
[SourceQuality "1"]
[TimeControl "40/5400+30:1800+30"]

1. e4 {[%emt 0:00:00]} c5 {[%emt 0:00:00]} 2. Nf3 {[%emt 0:00:00]} Nc6 {[%emt 0:00:00]} 3. d4 {[%emt 0:00:00]} cxd4 {[%emt 0:00:00]} 4. Nxd4 {[%emt 0:00:00]} Nf6 {[%emt 0:00:00]} 5. Nc3 {[%emt 0:00:00]} d6 {[%emt 0:00:00]} 6. f3 {[%emt 0:00:09]} e5 {[%emt 0:00:30]} 7. Nb3 {[%emt 0:00:06]} Be7 {[%emt 0:01:20]} 8. Be3 {[%emt 0:00:14]} Be6 {[%emt 0:01:28]} 9. Nd5 {[%emt 0:00:11]} Bxd5 {[%emt 0:04:18]} 10. exd5 {[%emt 0:00:07]} Nb8 {[%emt 0:00:01]} 11. Qd2 {[%emt 0:00:33]} O-O {[%emt 0:01:33]} 12. g4 {[%emt 0:02:17]} a5 {[%emt 0:06:01]} 13. a4 {[%emt 0:05:35]} Nbd7 {[%emt 0:03:44]} 14. g5 {[%emt 0:05:39]} Ne8 {[%emt 0:06:51]} 15. O-O-O {[%emt 0:00:40]} Nc5 {[%emt 0:06:32]} 16. Nxc5 {[%emt 0:14:33]} dxc5 {[%emt 0:00:04]} 17. h4 {[%emt 0:00:18]} Nd6 {[%emt 0:02:29]} 18. Bxc5 {[%emt 0:04:42]} Rc8 {[%emt 0:05:18]} 19. Bxd6 {[%emt 0:03:57]} Bxd6 {[%emt 0:01:36]} 20. Bd3 {[%emt 0:03:22]} Qb6 {[%emt 0:07:39]} 21. Qe2 {[%emt 0:05:49]} Bc5 {[%emt 0:07:58]} 22. Qe4 {[%emt 0:02:57]} g6 {[%emt 0:03:30]} 23. Bb5 {[%emt 0:07:28]} Qd6 {[%emt 0:04:33]} 24. Kb1 {[%emt 0:03:09]} Bd4 {[%emt 0:06:47]} 25. Rd3 {[%emt 0:01:09]} Qb4 {[%emt 0:02:20]} 26. Rb3 {[%emt 0:01:48]} Qd6 {[%emt 0:06:08]} 27. h5 {[%emt 0:08:46]} Rfd8 {[%emt 0:05:53]} 28. hxg6 {[%emt 0:00:14]} fxg6 {[%emt 0:00:17]} 29. Qh4 {[%emt 0:04:11]} Rc7 {[%emt 0:00:38]} 30. Bd3 {[%emt 0:01:21]} Rf8 {[%emt 0:01:33]} 31. Be4 {[%emt 0:00:42]} Rf4 {[%emt 0:01:47]} 32. Qh3 {[%emt 0:01:03]} b6 {[%emt 0:00:58]} 33. Rd3 {[%emt 0:01:58]} Rff7 {[%emt 0:02:16]} 34. Qe6 {[%emt 0:02:26]} Qxe6 {[%emt 0:02:37]} 35. dxe6 {[%emt 0:00:02]} Rf8 {[%emt 0:00:29]} 36. c3 {[%emt 0:00:18]} Bc5 {[%emt 0:00:04]} 37. Rd5 {[%emt 0:01:30]} Re7 {[%emt 0:01:47]} 38. Rxe5 {[%emt 0:00:15]} Bd6 {[%emt 0:00:46]} 39. Rb5 {[%emt 0:00:14]} Bc5 {[%emt 0:00:17]} 40. b4 {[%emt 0:00:00]} axb4 {[%emt 0:00:00]} 41. cxb4 {[%emt 0:00:51]} Be3 {[%emt 0:02:41]} 42. Re1 {[%emt 0:03:33]} Bf2 {[%emt 0:00:45]} 43. Re2 {[%emt 0:00:07]} Bg1 {[%emt 0:00:19]} 44. Rd5 {[%emt 0:01:07]} 1-0

[Event "POL-ch Women MOKATE 2020"]
[Site "Ostrow Wielkopolski"]
[Date "2020.08.10"]
[Round "7.2"]
[White "Cyfka, Karina"]
[Black "Sliwicka, Alicja"]
[Result "1/2-1/2"]
[ECO "A57"]
[WhiteElo "2411"]
[BlackElo "2317"]
[Annotator "ChessBase"]
[PlyCount "65"]
[EventDate "2020.08.04"]
[EventType "tourn"]
[EventCountry "POL"]
[SourceTitle "playchess.com"]
[Source "ChessBase"]
[SourceQuality "1"]
[TimeControl "40/5400+30:1800+30"]

1. d4 {[%emt 0:00:00]} Nf6 {[%emt 0:00:00]} 2. c4 {[%emt 0:00:19]} c5 {[%emt 0:00:00]} 3. d5 {[%emt 0:00:07]} b5 {[%emt 0:00:00]} 4. Qc2 {[%emt 0:00:10]} bxc4 {[%emt 0:00:09]} 5. e4 {[%emt 0:00:19]} d6 {[%emt 0:00:06]} 6. Bxc4 {[%emt 0:01:00]} g6 {[%emt 0:00:07]} 7. Nc3 {[%emt 0:03:13]} Bg7 {[%emt 0:00:27]} 8. Nf3 {[%emt 0:00:07]} O-O {[%emt 0:00:17]} 9. O-O {[%emt 0:00:21]} Ba6 {[%emt 0:00:14]} 10. Nb5 {[%emt 0:00:14]} Ne8 {[%emt 0:08:22]} 11. Bd2 {[%emt 0:09:32]} Qb6 {[%emt 0:03:22]} 12. a4 {[%emt 0:04:00]} Nc7 {[%emt 0:00:58]} 13. a5 {[%emt 0:17:52]} Qb7 {[%emt 0:00:13]} 14. Nxc7 {[%emt 0:00:06]} Qxc7 {[%emt 0:00:12]} 15. Rab1 {[%emt 0:00:22]} Qc8 {[%emt 0:15:58]} 16. Rfc1 {[%emt 0:03:44]} Nd7 {[%emt 0:07:58]} 17. h3 {[%emt 0:17:47]} Rb8 {[%emt 0:01:34]} 18. b3 {[%emt 0:01:50]} Bb5 {[%emt 0:02:30]} 19. Bxb5 {[%emt 0:02:23]} Rxb5 {[%emt 0:00:14]} 20. b4 {[%emt 0:00:30]} Qa6 {[%emt 0:04:42]} 21. bxc5 {[%emt 0:05:00]} Rxc5 {[%emt 0:04:58]} 22. Qb3 {[%emt 0:03:54]} Rfc8 {[%emt 0:05:10]} 23. Rxc5 {[%emt 0:02:39]} Nxc5 {[%emt 0:00:29]} 24. Qe3 {[%emt 0:03:16]} Qc4 {[%emt 0:06:55]} 25. Rc1 {[%emt 0:00:36]} Qa4 {[%emt 0:01:23]} 26. e5 {[%emt 0:02:44]} Qa2 {[%emt 0:04:47]} 27. exd6 {[%emt 0:03:29]} exd6 {[%emt 0:00:40]} 28. Qe7 {[%emt 0:00:19]} Qxd5 {[%emt 0:01:24]} 29. Qxa7 {[%emt 0:10:04]} Ra8 {[%emt 0:04:37]} 30. Qc7 {[%emt 0:00:26]} Nb3 {[%emt 0:02:48]} 31. Rc2 {[%emt 0:00:43]} Nxd2 {[%emt 0:06:07]} 32. Rxd2 {[%emt 0:00:10]} Qxa5 {[%emt 0:00:11]} 33. Qxa5 {[%emt 0:00:32]} 1/2-1/2

[Event "POL-ch Women MOKATE 2020"]
[Site "Ostrow Wielkopolski"]
[Date "2020.08.10"]
[Round "7.3"]
[White "Kubicka, Anna"]
[Black "Antolak, Julia"]
[Result "1/2-1/2"]
[ECO "A43"]
[WhiteElo "2256"]
[BlackElo "2323"]
[Annotator "ChessBase"]
[PlyCount "111"]
[EventDate "2020.08.04"]
[EventType "tourn"]
[EventCountry "POL"]
[SourceTitle "playchess.com"]
[Source "ChessBase"]
[SourceQuality "1"]
[TimeControl "40/5400+30:1800+30"]

1. Nf3 {[%emt 0:00:00]} Nf6 {[%emt 0:00:00]} 2. d4 {[%emt 0:00:00]} c5 {[%emt 0:00:51]} 3. d5 {[%emt 0:00:00]} b5 {[%emt 0:01:36]} 4. g3 {[%emt 0:01:26]} d6 {[%emt 0:02:57]} 5. e4 {[%emt 0:02:54]} a6 {[%emt 0:05:40]} 6. Bg2 {[%emt 0:11:57]} g6 {[%emt 0:05:17]} 7. O-O {[%emt 0:02:23]} Bg7 {[%emt 0:02:19]} 8. Re1 {[%emt 0:05:34]} O-O {[%emt 0:02:27]} 9. h3 {[%emt 0:00:59]} Bb7 {[%emt 0:02:14]} 10. c3 {[%emt 0:01:46]} Nbd7 {[%emt 0:02:01]} 11. b3 {[%emt 0:05:59]} Nb6 {[%emt 0:09:26]} 12. Bb2 {[%emt 0:02:47]} Nfd7 {[%emt 0:02:28]} 13. Qc2 {[%emt 0:00:31]} Re8 {[%emt 0:05:13]} 14. Nbd2 {[%emt 0:02:54]} c4 {[%emt 0:05:41]} 15. bxc4 {[%emt 0:05:08]} bxc4 {[%emt 0:01:17]} 16. Bf1 {[%emt 0:01:26]} Rc8 {[%emt 0:04:03]} 17. Ba3 {[%emt 0:00:57]} a5 {[%emt 0:07:41]} 18. Rab1 {[%emt 0:01:08]} Ba6 {[%emt 0:02:06]} 19. Kh2 {[%emt 0:04:29]} Qc7 {[%emt 0:01:44]} 20. Nd4 {[%emt 0:03:29]} e6 {[%emt 0:05:14]} 21. dxe6 {[%emt 0:11:17]} fxe6 {[%emt 0:00:04]} 22. Nb5 {[%emt 0:01:27]} Bxb5 {[%emt 0:00:05]} 23. Rxb5 {[%emt 0:00:03]} d5 {[%emt 0:08:32]} 24. Bg2 {[%emt 0:02:45]} d4 {[%emt 0:04:02]} 25. cxd4 {[%emt 0:01:12]} Bxd4 {[%emt 0:00:06]} 26. Nf3 {[%emt 0:01:24]} Bg7 {[%emt 0:02:32]} 27. e5 {[%emt 0:03:12]} Nd5 {[%emt 0:01:48]} 28. Bd6 {[%emt 0:00:38]} Qa7 {[%emt 0:00:37]} 29. Reb1 {[%emt 0:01:40]} Qa6 {[%emt 0:02:49]} 30. a4 {[%emt 0:01:28]} Bf8 {[%emt 0:01:50]} 31. Bxf8 {[%emt 0:02:11]} Rxf8 {[%emt 0:00:09]} 32. Ng5 {[%emt 0:03:21]} Nc5 {[%emt 0:04:30]} 33. Bxd5 {[%emt 0:04:00]} exd5 {[%emt 0:00:08]} 34. Nxh7 {[%emt 0:01:02]} Kxh7 {[%emt 0:06:37]} 35. Rb6 {[%emt 0:00:06]} Ne4 {[%emt 0:01:16]} 36. Rxa6 {[%emt 0:01:03]} Rxf2+ {[%emt 0:00:05]} 37. Qxf2 {[%emt 0:00:02]} Nxf2 {[%emt 0:00:06]} 38. Rb7+ {[%emt 0:00:20]} Kh6 {[%emt 0:00:40]} 39. Raa7 {[%emt 0:01:35]} c3 {[%emt 0:00:46]} 40. Rh7+ {[%emt 0:00:00]} Kg5 {[%emt 0:00:00]} 41. Raf7 {[%emt 0:25:14]} Rc4 {[%emt 0:16:57]} 42. h4+ {[%emt 0:19:21]} Kg4 {[%emt 0:00:15]} 43. Rhg7 {[%emt 0:00:53]} c2 {[%emt 0:03:43]} 44. Rxg6+ {[%emt 0:00:25]} Kh5 {[%emt 0:00:05]} 45. Rg5+ {[%emt 0:00:36]} Kh6 {[%emt 0:00:05]} 46. Rf6+ {[%emt 0:00:57]} Kh7 {[%emt 0:00:01]} 47. Rh5+ {[%emt 0:00:15]} Kg7 {[%emt 0:00:21]} 48. Rg5+ {[%emt 0:00:02]} Kh7 {[%emt 0:00:06]} 49. Rf7+ {[%emt 0:01:09]} Kh6 {[%emt 0:01:25]} 50. Rf6+ {[%emt 0:00:46]} Kh7 {[%emt 0:00:07]} 51. Rxf2 {[%emt 0:00:37]} c1=Q {[%emt 0:00:35]} 52. Rf7+ {[%emt 0:00:02]} Kh6 {[%emt 0:00:33]} 53. Rf6+ {[%emt 0:00:12]} Kh7 {[%emt 0:00:02]} 54. Rf7+ {[%emt 0:00:34]} Kh6 {[%emt 0:00:05]} 55. Rf6+ {[%emt 0:00:02]} Kh7 {[%emt 0:00:03]} 56. Rf7+ {[%emt 0:00:01]} 1/2-1/2

[Event "POL-ch Women MOKATE 2020"]
[Site "Ostrow Wielkopolski"]
[Date "2020.08.10"]
[Round "7.4"]
[White "Waszczuk, Patrycja"]
[Black "Kulon, Klaudia"]
[Result "1-0"]
[ECO "B32"]
[WhiteElo "2321"]
[BlackElo "2336"]
[Annotator "ChessBase"]
[PlyCount "81"]
[EventDate "2020.08.04"]
[EventType "tourn"]
[EventCountry "POL"]
[SourceTitle "playchess.com"]
[Source "ChessBase"]
[SourceQuality "1"]
[TimeControl "40/5400+30:1800+30"]

1. e4 {[%emt 0:00:00]} c5 {[%emt 0:00:00]} 2. Nf3 {[%emt 0:00:00]} Nc6 {[%emt 0:00:00]} 3. d4 {[%emt 0:00:00]} cxd4 {[%emt 0:00:00]} 4. Nxd4 {[%emt 0:00:00]} e5 {[%emt 0:00:00]} 5. Nb5 {[%emt 0:00:00]} d6 {[%emt 0:00:00]} 6. c4 {[%emt 0:00:10]} Be7 {[%emt 0:00:29]} 7. N1c3 {[%emt 0:00:30]} a6 {[%emt 0:00:06]} 8. Na3 {[%emt 0:00:05]} f5 {[%emt 0:00:14]} 9. exf5 {[%emt 0:06:05]} Bxf5 {[%emt 0:00:03]} 10. Be3 {[%emt 0:01:19]} Nf6 {[%emt 0:00:51]} 11. Be2 {[%emt 0:02:03]} O-O {[%emt 0:02:54]} 12. O-O {[%emt 0:01:24]} Qd7 {[%emt 0:07:16]} 13. Nd5 {[%emt 0:01:42]} Rae8 {[%emt 0:05:21]} 14. Nc2 {[%emt 0:04:29]} Bd8 {[%emt 0:03:57]} 15. Rc1 {[%emt 0:06:08]} Kh8 {[%emt 0:03:48]} 16. Ncb4 {[%emt 0:02:29]} a5 {[%emt 0:06:43]} 17. Nxf6 {[%emt 0:06:04]} gxf6 {[%emt 0:00:02]} 18. Nd5 {[%emt 0:04:50]} Rg8 {[%emt 0:00:02]} 19. Kh1 {[%emt 0:09:54]} Be4 {[%emt 0:18:37]} 20. f3 {[%emt 0:00:28]} Bg6 {[%emt 0:00:34]} 21. a3 {[%emt 0:07:34]} Qg7 {[%emt 0:01:28]} 22. Rg1 {[%emt 0:01:44]} f5 {[%emt 0:01:53]} 23. f4 {[%emt 0:04:11]} Bf7 {[%emt 0:04:58]} 24. Rc3 {[%emt 0:01:34]} Re6 {[%emt 0:07:13]} 25. g4 {[%emt 0:09:51]} fxg4 {[%emt 0:07:12]} 26. f5 {[%emt 0:00:09]} Ree8 {[%emt 0:00:24]} 27. Bxg4 {[%emt 0:00:51]} Qf8 {[%emt 0:02:33]} 28. f6 {[%emt 0:04:44]} Nd4 {[%emt 0:06:59]} 29. Rf1 {[%emt 0:01:31]} Ne6 {[%emt 0:08:00]} 30. Qf3 {[%emt 0:06:03]} e4 {[%emt 0:05:08]} 31. Qh3 {[%emt 0:04:20]} Ng5 {[%emt 0:01:18]} 32. Qh4 {[%emt 0:02:14]} Re5 {[%emt 0:00:33]} 33. Rf5 {[%emt 0:03:58]} Rxf5 {[%emt 0:00:50]} 34. Bxf5 {[%emt 0:00:06]} h6 {[%emt 0:00:05]} 35. Ne7 {[%emt 0:01:30]} Nf3 {[%emt 0:02:33]} 36. Qxe4 {[%emt 0:01:45]} Ng5 {[%emt 0:00:02]} 37. Qh4 {[%emt 0:01:23]} Be8 {[%emt 0:00:55]} 38. Bd4 {[%emt 0:01:30]} Nf7 {[%emt 0:01:35]} 39. Nxg8 {[%emt 0:01:30]} Qxg8 {[%emt 0:00:46]} 40. Rg3 {[%emt 0:00:00]} Qf8 {[%emt 0:00:00]} 41. Qg4 {[%emt 0:03:08]} 1-0